bitfinex-derivatives/quotes_ETHF0:USTF0_20241228
["timestamp","ask_amount","ask_price","bid_price","bid_amount"]
[1735427563562,0.29416,3406.0,3405.9,3.50195]
[1735427563968,0.29416,3406.0,3405.9,0.29415]
[1735427564168,0.29416,3405.9,3405.8,0.66532257]
[1735427564466,0.29416,3405.9,3405.8,1.12516838]
[1735427564668,0.29416,3405.9,3405.8,0.66532257]
[1735427566059,1.2,3406.0,3405.8,0.66532257]
[1735427566260,8.87984867,3406.4,3406.3,0.29412]
[1735427566566,6.87204867,3406.4,3406.3,0.29412]
[1735427567070,0.29413,3406.3,3406.2,0.29413]
[1735427567666,1.2,3406.4,3405.9,3.2078]
[1735427567967,4.57682867,3406.6,3406.5,0.29411]
[1735427568168,4.57682867,3406.6,3406.5,0.75387558]
[1735427568768,4.57682867,3406.9,3406.8,0.29408]
[1735427568964,4.87089867,3406.9,3406.8,0.29408]
[1735427569174,4.57682867,3406.9,3406.8,0.29408]
[1735427569368,4.87089867,3406.9,3406.8,0.29408]
[1735427569874,0.29407,3406.9,3406.8,0.29408]
[1735427571971,1.49406,3407.1,3407.0,0.29405]
[1735427572572,4.57682867,3407.2,3407.1,0.29405]
[1735427572776,4.87086867,3407.3,3407.2,0.29405]
[1735427572976,4.87086867,3407.3,3407.2,2.78545]
[1735427572977,4.57682867,3407.3,3407.2,2.78545]
[1735427573376,4.57682867,3407.3,3407.2,3.2450821]
[1735427573773,4.57682867,3407.3,3407.2,2.78545]
[1735427574275,0.29403,3407.4,3407.3,0.29404]
[1735427574676,0.29403,3407.4,3407.2,2.4914]
[1735427574677,1.2,3407.5,3407.2,2.4914]
[1735427574874,1.49402,3407.5,3407.4,0.29403]
[1735427576877,1.49402,3407.5,3407.3,0.29403]
[1735427578975,1.2,3407.5,3407.3,0.29403]
[1735427579176,0.29403,3407.4,3407.3,0.29403]
[1735427579475,1.2,3407.5,3406.9,0.73517]
[1735427579476,0.29407,3407.0,3406.9,0.29407]
[1735427580880,0.29406,3407.1,3407.0,0.29406]
[1735427581083,9.77882867,3407.5,3406.7,3.2078]
[1735427581374,9.77882867,3407.5,3406.8,0.45965362]
[1735427581375,5.77682867,3407.5,3406.8,0.45965362]
[1735427581678,0.29405,3407.2,3407.1,0.29405]
[1735427582081,0.29405,3407.2,3407.0,0.29406]
[1735427582877,0.29405,3407.2,3407.1,0.29405]
[1735427583077,3.50184,3407.3,3407.2,0.29405]
[1735427583281,0.29405,3407.2,3407.1,0.29405]
[1735427583974,3.2078,3407.3,3406.6,4.0615]
[1735427584180,0.29406,3407.1,3406.9,0.29407]
[1735427584380,0.29406,3407.1,3407.0,0.29406]
[1735427584880,0.8282,3407.2,3406.6,4.0615]
[1735427585081,0.8022,3407.0,3406.6,4.0615]
[1735427585277,0.29409,3406.7,3406.6,4.0615]
[1735427586284,0.8282,3407.2,3406.6,4.0615]
[1735427586485,2.32125,3407.2,3407.1,0.29405]
[1735427586780,2.0272,3407.2,3407.1,0.29405]
[1735427586988,5.31187867,3407.6,3407.5,0.29402]
[1735427586989,1.199,3407.6,3407.5,0.29402]
[1735427587184,3.50181,3407.7,3407.6,0.29401]
[1735427587385,4.70081,3407.7,3407.6,0.29401]
[1735427588084,4.4068,3407.7,3407.6,0.29401]
[1735427588586,4.60490377,3408.1,3407.4,3.2078]
[1735427588982,4.89887377,3408.1,3407.9,0.29398]
[1735427589189,4.89887377,3408.1,3408.0,1.07638]
[1735427589388,4.89887377,3408.1,3408.0,0.7824]
[1735427589788,4.4068,3408.2,3407.4,3.2078]
[1735427589789,6.76051847,3408.2,3407.4,3.2078]
[1735427589989,6.76051847,3408.2,3407.5,0.29401]
[1735427589990,0.29401,3407.7,3407.5,0.29401]
[1735427590386,0.29398,3408.0,3407.5,0.29401]
[1735427590690,0.294,3407.8,3407.6,0.29401]
[1735427591989,0.294,3407.7,3407.6,0.29401]
[1735427592190,0.29401,3407.6,3407.4,3.9902]
[1735427592590,0.29401,3407.6,3407.5,0.29402]
[1735427592791,1.11041,3407.6,3407.5,0.29402]
[1735427593280,1.11041,3407.6,3407.4,3.9902]
[1735427593281,0.8164,3407.6,3407.4,3.9902]
[1735427593487,0.8164,3407.6,3407.0,3.2078]
[1735427593786,0.8164,3407.6,3407.1,0.45962651]
[1735427593992,1.11042,3407.6,3407.5,0.29402]
[1735427595988,0.29402,3407.5,3407.4,0.29402]
[1735427596686,1.199,3407.8,3407.0,4.003]
[1735427596895,1.493,3407.8,3407.7,0.294]
[1735427601191,1.199,3407.8,3407.7,0.294]
[1735427601891,1.49299,3407.8,3407.7,0.294]
[1735427607390,0.73486,3408.5,3407.7,0.73501]
[1735427607591,0.29399,3408.0,3407.9,0.29398]
[1735427611994,1.199,3408.2,3408.1,0.29397]
[1735427612197,1.49296,3408.2,3408.1,0.29397]
[1735427612496,0.29398,3408.1,3408.0,0.29397]
[1735427614499,0.29399,3407.9,3407.8,3.2078]
[1735427616696,0.29399,3407.9,3407.8,3.66738489]
[1735427619002,0.29399,3407.9,3407.8,3.96138489]
[1735427620394,4.60490377,3408.2,3407.8,4.40237489]
[1735427620608,0.29398,3408.1,3408.0,0.29397]
[1735427621203,0.29398,3408.1,3408.0,0.75353079]
[1735427622204,1.199,3408.2,3408.0,0.75353079]
[1735427622506,1.49296,3408.2,3408.1,0.29397]
[1735427622707,1.49296,3408.2,3408.1,0.75351892]
[1735427624509,1.199,3408.2,3408.1,0.75351892]
[1735427624708,1.49296,3408.2,3408.1,0.75351892]
[1735427625805,1.49296,3408.2,3408.1,0.29397]
[1735427627007,1.199,3408.2,3408.1,0.29397]
[1735427627409,1.199,3408.2,3408.1,0.75350741]
[1735427628213,1.665,3408.5,3408.1,0.45953741]
[1735427628413,2.864,3408.5,3408.2,2.83114741]
[1735427628602,4.60490377,3408.6,3408.5,0.29393]
[1735427629009,4.60490377,3408.6,3408.5,0.75346741]
[1735427631115,0.29389,3409.0,3408.9,0.2939]
[1735427631613,6.89659377,3409.1,3409.0,0.29389]
[1735427631806,6.09779377,3409.1,3409.0,0.29389]
[1735427632412,1.49289,3409.1,3409.0,0.29389]
[1735427632802,1.199,3409.1,3409.0,0.29389]
[1735427634513,8.89756377,3409.4,3409.3,0.29387]
[1735427634514,9.80270377,3409.4,3409.3,0.29387]
[1735427634816,0.791,3409.4,3409.3,0.29387]
[1735427636202,6.09775377,3409.5,3408.9,5.56253383]
[1735427636203,4.60490377,3409.5,3408.9,5.56253383]
[1735427636405,1.199,3409.6,3409.5,0.29385]
[1735427636807,1.199,3409.6,3409.5,1.99155]
[1735427638311,1.199,3409.6,3409.0,3.2078]
[1735427638513,1.199,3409.6,3409.0,4.34659]
[1735427638710,0.29388,3409.2,3409.0,1.13879]
[1735427638907,1.6266,3409.1,3409.0,1.13879]
[1735427640519,0.2939,3409.0,3408.9,0.2939]
[1735427640716,1.6266,3409.1,3408.6,4.8577]
[1735427640915,0.2939,3409.0,3408.9,0.2939]
[1735427643009,0.29389,3409.0,3408.9,0.2939]
[1735427643214,1.6266,3409.1,3408.7,3.2078]
[1735427643415,1.6266,3409.1,3409.0,0.29389]
[1735427643913,0.29386,3409.4,3409.3,0.29387]
[1735427644320,1.6309,3409.5,3409.1,3.2078]
[1735427644518,0.29386,3409.4,3409.3,0.29386]
[1735427645924,1.199,3409.6,3409.5,0.29385]
[1735427646115,0.29383,3409.7,3409.6,0.29383]
[1735427646422,3.2078,3409.8,3409.3,1.5874]
[1735427646721,4.69962,3409.8,3409.7,0.29383]
[1735427646926,4.69962,3409.8,3409.3,1.5874]
[1735427647220,1.49182,3409.8,3409.6,0.29383]
[1735427647416,0.29383,3409.7,3409.6,0.29383]
[1735427648619,0.29384,3409.6,3409.5,0.29385]
[1735427648823,4.4058,3409.8,3409.1,3.2078]
[1735427649023,0.29387,3409.3,3409.2,0.29387]
[1735427650427,1.5926,3409.5,3409.1,3.2078]
[1735427650618,0.29388,3409.2,3409.1,3.2078]
[1735427652419,0.29392,3408.7,3408.4,3.2078]
[1735427652623,0.8556,3408.6,3408.4,3.50174]
[1735427652818,0.29395,3408.3,3408.2,0.29396]
[1735427653024,1.7149,3408.6,3408.1,0.8223]
[1735427653226,0.29396,3408.2,3408.0,4.89011983]
[1735427653523,1.14957,3408.1,3408.0,4.89012983]
[1735427653724,1.14957,3408.1,3408.0,0.29398]
[1735427654119,0.8556,3408.1,3408.0,0.29398]
[1735427655424,0.8593,3408.6,3407.8,0.8223]
[1735427655425,2.0573,3408.6,3407.9,3.2078]
[1735427655618,2.35123,3408.6,3408.4,0.29394]
[1735427656019,2.0573,3408.6,3407.9,3.2078]
[1735427656523,0.29394,3408.5,3408.3,0.29395]
[1735427657518,0.29394,3408.5,3407.9,3.2078]
[1735427657719,2.0573,3408.6,3408.0,0.4595128]
[1735427657926,0.29395,3408.4,3408.3,0.29395]
[1735427658625,0.29395,3408.3,3408.2,0.29396]
[1735427662027,2.0573,3408.6,3407.9,3.2078]
[1735427662230,2.35123,3408.6,3408.5,0.29394]
[1735427662529,2.35123,3408.6,3408.4,0.29394]
[1735427663227,0.29394,3408.5,3408.4,0.29394]
[1735427665629,1.49193,3408.6,3408.5,0.29394]
[1735427668733,1.198,3408.6,3408.5,0.29394]
[1735427669934,1.49193,3408.6,3408.5,0.29394]
[1735427670135,3.2078,3408.7,3408.6,0.29393]
[1735427670630,2.31908,3409.3,3409.2,0.29388]
[1735427670826,1.198,3409.3,3409.2,0.29388]
[1735427671026,1.198,3409.3,3409.2,3.50168]
[1735427671226,4.60490377,3409.6,3409.2,3.50168]
[1735427671421,4.60490377,3409.6,3409.5,0.29385]
[1735427671826,4.89874377,3409.6,3409.5,0.29385]
[1735427672429,3.50164,3409.7,3409.2,3.2078]
[1735427672630,3.50164,3409.7,3409.6,0.29384]
[1735427673235,0.8272,3409.8,3409.3,0.73468]
[1735427673428,1.12103,3409.8,3409.7,0.29383]
[1735427674637,0.29384,3409.7,3409.6,0.29384]
[1735427674833,0.29387,3409.3,3409.2,3.50167]
[1735427675031,0.29386,3409.4,3409.3,0.29387]
[1735427677338,0.8272,3409.8,3409.2,3.2078]
[1735427677339,0.29386,3409.5,3409.4,0.29386]
[1735427678140,0.29387,3409.3,3409.2,3.50167]
[1735427678736,0.8527,3409.3,3409.2,3.50167]
[1735427679742,0.8527,3409.3,3409.2,0.29387]
[1735427680843,0.29386,3409.4,3409.0,5.6608]
[1735427681043,0.29386,3409.4,3409.3,0.29387]
[1735427681845,0.29387,3409.4,3409.3,0.29386]
[1735427682047,5.17664,3409.7,3409.6,0.29384]
[1735427682640,5.17664,3409.7,3409.1,0.73472]
[1735427682641,0.29386,3409.5,3409.4,0.29385]
[1735427682854,4.35433,3409.7,3409.6,0.29384]
[1735427683151,4.0605,3409.7,3409.6,0.29384]
[1735427684036,0.8527,3409.7,3409.6,0.29384]
[1735427685240,0.29385,3409.5,3409.1,3.2078]
[1735427685542,0.29385,3409.5,3409.4,0.29386]
[1735427688745,0.29385,3409.6,3409.5,0.29385]
[1735427688946,0.8527,3409.7,3409.6,0.29384]
[1735427690848,0.29383,3409.8,3409.7,0.29383]
[1735427691548,2.8822,3410.0,3409.0,4.8065]
[1735427691748,0.29387,3409.3,3409.2,0.29387]
[1735427692646,0.29388,3409.2,3409.1,0.29388]
[1735427692847,0.29388,3409.2,3409.0,3.9933]
[1735427692848,0.29388,3409.1,3409.0,3.2078]
[1735427695241,1.9931,3409.2,3408.7,0.29391]
[1735427695242,0.29391,3408.8,3408.7,0.29391]
[1735427698655,0.8045,3409.0,3408.5,4.848]
[1735427698953,1.09841,3409.0,3408.9,0.29391]
[1735427700255,0.8045,3409.0,3408.5,4.848]
[1735427700449,0.29393,3408.8,3408.7,0.29392]
[1735427701055,0.8045,3409.0,3408.5,4.848]
[1735427701355,0.29392,3408.9,3408.8,0.29391]
[1735427702450,3.2078,3409.1,3409.0,0.2939]
[1735427702756,3.2078,3409.1,3409.0,0.75330477]
[1735427703159,3.50169,3409.1,3409.0,0.45940477]
[1735427703350,0.29393,3408.7,3408.6,0.29393]
[1735427703659,4.8358,3409.1,3408.5,9.44414983]
[1735427703860,1.49193,3408.8,3408.7,0.29392]
[1735427704053,1.198,3408.8,3408.5,9.44414983]
[1735427704253,0.29393,3408.7,3408.6,0.29393]
[1735427704453,1.198,3408.8,3408.5,6.23634983]
[1735427704650,1.198,3408.8,3408.5,4.59614983]
[1735427704651,3.50174,3408.6,3408.5,4.59614983]
[1735427704957,3.50174,3408.6,3408.2,0.29397]
[1735427704958,0.29396,3408.3,3408.2,0.29397]
[1735427705551,0.29397,3408.2,3408.1,4.59614983]
[1735427706450,0.29399,3408.1,3407.9,3.50179]
[1735427706654,2.31458,3408.5,3407.9,3.2078]
[1735427706854,0.29399,3408.0,3407.9,3.50179]
[1735427707057,1.49199,3408.0,3407.9,3.50179]
[1735427707259,1.49199,3408.0,3407.9,3.2078]
[1735427708558,1.198,3408.0,3407.7,0.294]
[1735427708763,1.1038,3407.9,3407.7,0.294]
[1735427709259,1.9352,3407.9,3407.8,0.294]
[1735427711464,9.01070377,3408.6,3408.5,0.29394]
[1735427711660,9.30464377,3408.6,3408.5,0.29394]
[1735427711960,0.29396,3408.4,3408.3,0.29395]
[1735427712160,4.4058,3408.6,3408.2,2.476]
[1735427712353,4.4058,3408.6,3408.5,0.29394]
[1735427714262,0.29396,3408.3,3408.2,0.8007]
[1735427714561,0.29398,3408.1,3408.0,7.80394983]
[1735427714765,0.29398,3408.1,3408.0,8.09793983]
[1735427715159,0.29398,3408.1,3408.0,7.80394983]
[1735427715864,0.29398,3408.1,3408.0,3.2078]
[1735427720566,5.56253383,3408.1,3407.4,1.6273]
[1735427720870,0.29403,3407.6,3407.5,0.29403]
[1735427721168,0.29404,3407.4,3407.3,4.33535]
[1735427721571,1.5676,3407.5,3407.4,0.29404]
[1735427722070,1.86163,3407.5,3407.4,0.29404]
[1735427722457,1.5676,3407.5,3407.3,4.0413]
[1735427722663,1.5676,3407.5,3407.3,4.33534]
[1735427722664,0.29404,3407.4,3407.3,4.33534]
[1735427723463,0.29404,3407.4,3407.3,1.12754]
[1735427726473,0.29405,3407.2,3407.1,0.8123]
[1735427726664,0.29406,3407.1,3407.0,1.13426]
[1735427727769,0.29405,3407.2,3407.1,0.29405]
[1735427728070,0.29406,3407.1,3407.0,1.13426]
[1735427729171,2.30267,3407.5,3407.0,0.8402]
[1735427729472,0.29405,3407.2,3407.1,0.29405]
[1735427730573,0.29406,3407.1,3407.0,0.8402]
[1735427734172,3.2078,3407.3,3407.0,0.8402]
[1735427734376,3.2078,3407.3,3407.2,0.29405]
[1735427735377,0.29405,3407.2,3407.1,0.29405]
[1735427735771,0.29404,3407.3,3407.2,0.29404]
[1735427736676,0.29405,3407.2,3407.1,0.29405]
[1735427737979,1.198,3407.3,3407.0,0.8402]
[1735427738276,1.49204,3407.3,3407.2,0.29404]
[1735427739579,3.94284,3407.7,3407.0,0.8402]
[1735427739580,3.2078,3407.7,3407.6,0.29401]
[1735427740176,3.5018,3407.7,3407.6,0.29401]
[1735427740376,0.294,3407.7,3407.6,0.29401]
[1735427740882,1.198,3407.8,3407.5,0.8053]
[1735427741080,1.198,3407.8,3407.7,0.294]
[1735427741081,1.49199,3407.8,3407.7,0.294]
[1735427741293,1.198,3407.8,3407.7,0.294]
[1735427741483,0.8236,3408.1,3407.5,0.8053]
[1735427741693,0.8236,3408.1,3407.6,0.29401]
[1735427741979,0.8236,3408.1,3407.5,0.8053]
[1735427742190,0.29401,3407.6,3407.5,0.8053]
[1735427742581,0.29401,3407.6,3407.5,1.09932]
[1735427743975,0.29401,3407.7,3407.6,0.29401]
[1735427744170,0.29401,3407.6,3407.5,1.09931]
[1735427744376,0.29398,3408.0,3407.9,0.29398]
[1735427744575,0.8236,3408.1,3407.5,0.8053]
[1735427744783,0.29399,3407.8,3407.5,0.8053]
[1735427744982,0.294,3407.7,3407.6,0.294]
[1735427745277,0.29401,3407.6,3407.5,1.09931]
[1735427745478,0.29401,3407.6,3407.5,0.8053]
[1735427748286,0.29402,3407.5,3407.4,0.8252]
[1735427748483,3.06042,3407.5,3407.4,0.8252]
[1735427751788,0.29404,3407.2,3407.1,1.09695]
[1735427752184,0.29404,3407.2,3407.1,1.26253812]
[1735427752390,0.29405,3407.1,3407.0,3.2078]
[1735427752684,0.29405,3407.1,3407.0,3.66747791]
[1735427752985,0.29405,3407.1,3407.0,3.2078]
[1735427753390,3.50146,3407.5,3407.0,3.2078]
[1735427753590,0.29405,3407.2,3407.1,0.29404]
[1735427753791,0.29405,3407.2,3407.1,0.75369491]
[1735427754287,0.29405,3407.2,3407.1,0.45965491]
[1735427754587,2.7664,3407.5,3407.0,3.50185]
[1735427754791,0.29405,3407.1,3407.0,3.50185]
[1735427755092,0.29405,3407.1,3407.0,3.96152729]
[1735427757191,0.29405,3407.1,3407.0,0.75372729]
[1735427759986,4.89891377,3407.6,3407.5,0.29402]
[1735427760790,4.89891377,3407.6,3407.5,1.12202]
[1735427761294,4.60490377,3407.6,3407.5,1.12202]
[1735427761482,4.89891377,3407.6,3407.5,0.828]
[1735427761687,4.60490377,3407.6,3407.5,1.12202]
[1735427762092,0.29401,3407.7,3407.6,0.29401]
[1735427762793,0.29401,3407.6,3407.5,1.12201]
[1735427764191,0.29401,3407.6,3407.5,0.828]
[1735427764399,0.29402,3407.5,3407.4,4.34832]
[1735427764694,1.15272,3407.5,3407.4,4.34832]
[1735427765289,1.15272,3407.5,3407.4,3.2078]
[1735427765995,0.29403,3407.3,3407.2,1.10454]
[1735427766192,0.29403,3407.3,3407.2,1.56419798]
[1735427766591,0.29403,3407.3,3407.2,1.27015798]
[1735427766893,0.29403,3407.3,3407.2,0.45965798]
[1735427767295,0.29404,3407.2,3407.1,1.07275]
[1735427767594,1.49204,3407.2,3407.1,1.53242072]
[1735427772097,1.198,3407.2,3407.1,1.53242072]
[1735427772591,4.60490377,3407.4,3407.3,0.29403]
[1735427772996,4.60490377,3407.4,3407.3,0.75370072]
[1735427773399,4.60490377,3407.4,3407.3,3.96150072]
[1735427774099,0.29401,3407.6,3407.5,0.29402]
[1735427774502,0.29401,3407.6,3407.5,0.75369072]
[1735427774801,0.29401,3407.6,3407.5,0.45967072]
[1735427774997,0.29401,3407.6,3407.5,0.75369072]
[1735427775695,4.60490377,3407.9,3407.5,0.75369072]
[1735427775893,4.60490377,3407.9,3407.8,0.29399]
[1735427776292,4.60490377,3407.9,3407.8,0.75366072]
[1735427777695,1.198,3408.3,3407.8,6.26649294]
[1735427777900,4.60490377,3408.5,3408.4,0.29394]
[1735427779197,0.29393,3408.6,3408.3,0.8272]
[1735427779396,0.29393,3408.6,3408.5,0.29393]
[1735427779597,2.0319,3408.8,3408.3,0.8272]
[1735427779997,0.73479,3408.7,3408.1,7.82476698]
[1735427780193,0.29396,3408.2,3408.1,8.11872698]
[1735427780708,0.29396,3408.2,3408.1,4.91092698]
[1735427780904,0.29396,3408.3,3408.2,0.29396]
[1735427781793,0.8551,3408.6,3407.9,3.9953]
[1735427781999,0.8281,3408.2,3408.1,0.29397]
[1735427784405,1.12206,3408.2,3408.1,0.29397]
[1735427785412,0.8281,3408.2,3408.1,0.29397]
[1735427785601,3.2078,3408.7,3407.9,4.73026]
[1735427785797,3.2078,3408.7,3407.9,11.35003383]
[1735427786002,3.50171,3408.7,3408.6,0.29392]
[1735427786599,3.2078,3408.7,3408.6,0.29392]
[1735427792714,0.29393,3408.6,3408.4,1.6231]
[1735427793009,0.29396,3408.3,3408.2,0.29395]
[1735427793409,0.29397,3408.2,3408.1,0.29396]
[1735427793614,1.6281,3408.2,3407.9,8.61586698]
[1735427793813,0.29398,3408.0,3407.9,8.90984698]
[1735427794014,0.29398,3408.0,3407.9,4.29288]
[1735427794215,0.29398,3408.0,3407.9,3.2078]
[1735427795119,0.294,3407.7,3407.6,4.91097698]
[1735427795314,0.294,3407.7,3407.6,0.29401]
[1735427795510,0.73497,3407.9,3407.3,3.2078]
[1735427795712,3.2078,3407.4,3407.2,4.61696698]
[1735427796023,1.88834,3407.3,3407.2,4.61696698]
[1735427796622,1.88834,3407.3,3407.2,4.91100698]
[1735427796816,1.5943,3407.3,3407.2,4.91100698]
[1735427797221,1.5943,3407.3,3407.2,0.29404]
[1735427797519,0.29406,3407.1,3407.0,0.29407]
[1735427797722,0.29406,3407.1,3406.9,0.29408]
[1735427798124,1.5943,3407.3,3406.9,0.29408]
[1735427798426,0.29406,3407.2,3406.8,0.29408]
[1735427798629,0.29408,3407.0,3406.8,0.29408]
[1735427798817,1.5943,3407.3,3406.8,0.29408]
[1735427799023,0.29408,3406.9,3406.8,0.29408]
[1735427801729,0.29413,3406.4,3406.3,0.29413]
[1735427802026,0.29413,3406.3,3406.2,4.61696698]
[1735427802334,1.07063,3406.3,3406.2,4.61696698]
[1735427802924,0.7765,3406.3,3406.2,4.61696698]
[1735427803328,0.7765,3406.3,3406.2,0.29414]
[1735427807441,0.7765,3406.3,3405.9,0.8263]
[1735427807442,1.197,3406.6,3405.9,0.8263]
[1735427807735,1.197,3406.6,3406.5,0.29412]
[1735427807934,1.49111,3406.6,3406.5,0.29412]
[1735427808337,0.8146,3407.0,3406.2,3.2078]
[1735427808638,0.8146,3407.0,3406.8,0.29409]
[1735427809138,3.50189,3406.9,3406.8,0.29409]
[1735427810767,0.29409,3406.9,3406.8,0.29409]
[1735427811145,0.8146,3407.0,3406.3,0.73533]
[1735427811357,0.2941,3406.8,3406.7,0.29409]
[1735427812344,2.35473383,3406.8,3406.2,3.2078]
[1735427812545,0.29413,3406.5,3406.4,0.29411]
[1735427814146,2.35473383,3406.8,3406.2,3.2078]
[1735427814442,0.29411,3406.6,3406.5,0.29411]
[1735427820149,0.29413,3406.5,3406.4,0.29412]
[1735427820848,0.8202,3406.7,3406.2,3.2078]
[1735427821051,0.29413,3406.4,3406.3,0.29413]
[1735427822152,0.29412,3406.6,3406.5,0.29411]
[1735427822949,0.8202,3406.7,3406.6,0.29411]
[1735427823152,0.29406,3407.2,3406.8,0.29409]
[1735427823451,1.49107,3407.1,3407.0,0.29407]
[1735427824346,0.29407,3407.0,3406.9,1.12458]
[1735427824854,1.197,3407.1,3407.0,0.29407]
[1735427825748,1.49106,3407.1,3407.0,0.29407]
[1735427827247,0.29407,3407.0,3406.9,0.29408]
[1735427827453,0.29409,3406.9,3406.8,0.29409]
[1735427828851,1.197,3407.1,3406.7,1.6128]
[1735427829056,1.49107,3407.1,3407.0,0.29407]
[1735427831350,1.197,3407.1,3406.7,1.6128]
[1735427831550,0.29409,3406.9,3406.8,0.75379716]
[1735427831752,0.29409,3406.9,3406.8,0.75380716]
[1735427832161,0.29408,3407.0,3406.9,0.29407]
[1735427832455,0.29408,3406.9,3406.8,0.75380716]
[1735427832757,0.2941,3406.7,3406.6,3.50191]
[1735427833155,0.2941,3406.7,3406.6,3.96163929]
[1735427834156,0.2941,3406.7,3406.6,0.75383929]
[1735427834459,1.117,3406.7,3406.6,0.75383929]
[1735427834860,1.117,3406.7,3406.6,0.45972929]
[1735427835960,3.47173383,3406.7,3406.6,0.45972929]
[1735427836255,0.29413,3406.4,3406.3,0.29413]
[1735427836461,0.29416,3406.0,3405.9,4.91112698]
[1735427836655,1.49116,3406.0,3405.9,4.91112698]
[1735427836854,1.49116,3406.0,3405.9,5.3709603]
[1735427837455,1.49116,3406.0,3405.9,0.75399332]
[1735427837758,1.49116,3406.0,3405.9,0.29416]
[1735427839158,0.29417,3405.9,3405.8,0.66533257]
[1735427839661,0.29417,3405.9,3405.8,1.12517934]
[1735427840360,1.49117,3406.0,3405.9,0.29417]
[1735427841256,1.49116,3406.0,3405.9,0.29417]
[1735427841465,1.197,3406.0,3405.9,0.29417]
[1735427841765,1.49116,3406.0,3405.9,0.29417]
[1735427841963,1.197,3406.0,3405.9,0.29417]
[1735427842264,1.49116,3406.0,3405.9,0.29417]
[1735427846265,3.2078,3406.3,3406.2,0.29414]
[1735427846467,4.4048,3406.3,3406.2,0.29414]
[1735427847164,4.60490377,3406.4,3406.3,0.29413]
[1735427847764,0.29412,3406.5,3406.4,0.29413]
[1735427849867,0.29413,3406.4,3406.3,0.29413]
[1735427852673,3.50193,3406.4,3406.3,0.29413]
[1735427854175,3.2078,3406.4,3406.2,0.8142]
[1735427854372,0.29413,3406.3,3406.2,1.10834]
[1735427857169,0.29413,3406.3,3406.2,0.8142]
[1735427857371,0.29414,3406.2,3406.1,1.6376]
[1735427857678,0.29414,3406.2,3406.1,0.8044]
[1735427858373,0.29414,3406.2,3406.1,1.09855]
[1735427861478,0.29414,3406.2,3406.1,1.55836457]
[1735427862080,0.29414,3406.2,3406.1,1.09855]
[1735427863076,0.29414,3406.2,3406.1,1.55836079]
[1735427867886,0.29414,3406.2,3406.1,1.26421079]
[1735427868084,0.29414,3406.2,3406.1,0.45981079]
[1735427868287,0.29414,3406.2,3405.9,1.6125]
[1735427868288,0.29416,3406.0,3405.9,1.6125]
[1735427868681,0.29416,3406.0,3405.9,2.07233703]
[1735427872382,3.50196,3406.0,3405.9,2.07233703]
[1735427872693,3.50196,3406.0,3405.9,1.24063703]
[1735427874282,3.50196,3406.0,3405.9,0.45983703]
[1735427874987,0.29416,3405.9,3405.8,0.37116257]
[1735427875586,0.29416,3405.9,3405.8,0.83103989]
[1735427876685,0.29416,3405.9,3405.8,0.37116257]
[1735427881689,4.89906377,3405.9,3405.8,0.37116257]
[1735427884697,6.09606377,3405.9,3405.8,0.37116257]
[1735427885797,0.29418,3405.6,3405.5,4.61696698]
[1735427886094,2.64891383,3405.6,3405.5,4.61696698]
[1735427886695,0.29419,3405.5,3405.4,0.8464]
[1735427886896,0.8452,3405.5,3405.4,1.1406]
[1735427887196,1.13939,3405.5,3405.4,1.60048858]
[1735427887792,4.60490377,3405.9,3405.8,0.29416]
[1735427888396,5.93617542,3405.9,3405.8,0.29416]
[1735427888892,5.64202542,3405.9,3405.7,0.8466]
[1735427889200,0.29418,3405.6,3405.5,4.61696698]
[1735427889397,1.33130165,3405.6,3405.5,4.61696698]
[1735427890499,0.2942,3405.4,3405.3,0.2942]
[1735427890700,1.33132165,3405.4,3405.3,0.2942]
[1735427892202,1.33132165,3405.4,3405.3,0.75410643]
[1735427892704,1.33132165,3405.4,3405.3,0.2942]
[1735427894507,1.33132165,3405.4,3405.3,0.75410646]
[1735427895509,0.2942,3405.4,3405.3,0.75410646]
[1735427896499,0.29418,3405.7,3405.6,0.29417]
[1735427896704,4.60490377,3405.9,3405.5,0.73548]
[1735427896905,4.60490377,3405.9,3405.8,0.29416]
[1735427897309,5.64202542,3405.9,3405.8,0.29416]
[1735427897715,5.64202542,3405.9,3405.8,0.75399734]
[1735427897716,1.03712165,3405.9,3405.8,0.75399734]
[1735427898816,1.03712165,3405.9,3405.8,0.29416]
[1735427900120,1.03712165,3405.9,3405.7,0.8015]
[1735427900321,1.03712165,3405.9,3405.8,0.29416]
[1735427901214,1.33127165,3405.9,3405.8,0.75399668]
[1735427901413,1.33127165,3405.9,3405.8,0.29416]
[1735427901617,0.29416,3405.8,3405.7,1.09567]
[1735427902017,1.03712165,3405.9,3405.7,0.8015]
[1735427902218,1.33128165,3405.9,3405.8,0.29416]
[1735427903822,1.03712165,3405.9,3405.7,0.8015]
[1735427904022,0.29417,3405.7,3405.6,0.7833]
[1735427904316,1.33129165,3405.7,3405.6,0.7833]
[1735427904915,1.33129165,3405.7,3405.6,1.07748]
[1735427905117,1.33129165,3405.7,3405.6,1.53736131]
[1735427905723,1.33129165,3405.7,3405.6,6.15432829]
[1735427905923,1.33129165,3405.7,3405.6,5.86014829]
[1735427906322,1.33129165,3405.7,3405.6,4.61696698]
[1735427906623,0.29419,3405.5,3405.4,4.61696698]
[1735427906819,1.33131165,3405.5,3405.4,4.61696698]
[1735427908228,1.03712165,3405.5,3405.2,4.91117698]
[1735427908418,1.33132165,3405.3,3405.2,4.91117698]
[1735427908926,2.12002165,3405.3,3405.2,5.37110378]
[1735427909725,2.12002165,3405.3,3405.2,0.7541368]
[1735427909927,1.196,3405.4,3405.2,0.4599268]
[1735427910226,2.23312165,3405.4,3405.3,0.7541268]